bitfinex/quotes_ETHUSD_20230103
["timestamp","ask_amount","ask_price","bid_price","bid_amount"]
[1672771355282,38.02289905,1209.3,1209.2,0.81220706]
[1672771362095,38.01951961,1209.3,1209.2,0.81220706]
[1672771365249,28.09642961,1209.3,1209.2,0.81220706]
[1672771366305,38.01951961,1209.3,1209.2,0.81220706]
[1672771368066,23.76428872,1209.3,1209.2,0.81220706]
[1672771368279,27.47400081,1209.3,1209.2,0.81220706]
[1672771369134,23.76428872,1209.3,1209.2,0.81220706]
[1672771369434,27.47399137,1209.3,1209.2,0.81220706]
[1672771370108,28.09642961,1209.3,1209.2,0.81220706]
[1672771370325,23.76428872,1209.3,1209.2,0.81220706]
[1672771370542,27.47468403,1209.3,1209.2,0.81220706]
[1672771371357,28.09642961,1209.3,1209.2,0.81220706]
[1672771372330,38.01951961,1209.3,1209.2,0.81220706]
[1672771372480,28.09642961,1209.3,1209.2,0.81220706]
[1672771381033,33.68737872,1209.3,1209.2,0.81220706]
[1672771381248,23.76428872,1209.3,1209.2,0.81220706]
[1672771383299,33.68737872,1209.3,1209.2,0.81220706]
[1672771383458,23.76428872,1209.3,1209.2,0.81220706]
[1672771384082,28.88562211,1209.3,1209.2,0.81220706]
[1672771384292,23.76428872,1209.3,1209.2,0.81220706]
[1672771384505,23.76428872,1209.3,1209.2,0.80875109]
[1672771386409,28.88562211,1209.3,1209.2,0.80875109]
[1672771388803,38.80871211,1209.3,1209.2,0.80875109]
[1672771389896,44.36526525,1209.3,1209.2,0.80875109]
[1672771390120,45.35108112,1209.3,1209.2,0.80875109]
[1672771390757,41.87273186,1209.3,1209.2,0.80875109]
[1672771391820,46.251593,1209.3,1209.2,0.80875109]
[1672771392136,51.251593,1209.3,1209.2,0.80875109]
[1672771393337,57.40174489,1209.3,1209.2,0.80875109]
[1672771394638,67.32483489,1209.3,1209.2,0.80875109]
[1672771396320,57.40174489,1209.3,1209.2,0.80875109]
[1672771396657,53.02288375,1209.3,1209.2,0.80875109]
[1672771397603,49.9378346,1209.3,1209.2,0.80875109]
[1672771398173,44.81473186,1209.3,1209.2,0.80875109]
[1672771398441,39.81473186,1209.3,1209.2,0.80875109]
[1672771398609,44.93770339,1209.3,1209.2,0.80875109]
[1672771410508,44.93986961,1209.3,1209.2,0.80875109]
[1672771413488,44.93986961,1209.3,1209.2,0.80524734]
[1672771413890,39.81473186,1209.3,1209.2,0.80524734]
[1672771414983,39.81473186,1209.3,1209.1,4.83206156]
[1672771415206,5.12586357,1209.2,1209.1,4.76606156]
[1672771415519,18.77007724,1209.2,1209.1,0.85795284]
[1672771420359,28.69398724,1209.2,1209.1,0.85795284]
[1672771429131,38.61789724,1209.2,1209.1,0.85795284]
[1672771430605,28.69398724,1209.2,1209.1,0.85795284]
[1672771432706,18.77007724,1209.2,1209.1,0.85795284]
[1672771434174,8.84616724,1209.2,1209.1,0.85795284]
[1672771434403,18.77007724,1209.2,1209.1,0.85795284]
[1672771435349,18.77007724,1209.2,1209.1,0.85591577]
[1672771436634,8.84616724,1209.2,1209.1,0.85591577]
[1672771437959,5.13586357,1209.2,1209.1,4.76402449]
[1672771438854,8.81248795,1209.2,1209.1,14.68875449]
[1672771439168,8.81248807,1209.2,1209.1,4.83002449]
[1672771439376,8.81248807,1209.2,1209.1,0.85591577]
[1672771440837,18.73639807,1209.2,1209.1,0.85591577]
[1672771446382,18.7327805,1209.2,1209.1,0.85591577]
[1672771446800,8.8088705,1209.2,1209.1,0.85591577]
[1672771447242,18.7327805,1209.2,1209.1,0.85591577]
[1672771447641,8.8088705,1209.2,1209.1,0.85591577]
[1672771448694,14.3088705,1209.2,1209.1,0.85591577]
[1672771456894,8.8088705,1209.2,1209.1,4.76402449]
[1672771457098,8.8088705,1209.2,1209.1,24.61348449]
[1672771457099,5.132246,1209.2,1209.1,24.61348449]
[1672771457333,5.132246,1209.2,1209.1,7.3875921]
[1672771457541,15.056156,1209.2,1209.1,4.83002449]
[1672771457731,15.056156,1209.2,1209.1,4.76402449]
[1672771457966,5.132246,1209.2,1209.1,4.76402449]
[1672771458293,15.056156,1209.2,1209.1,4.76402449]
[1672771458510,8.80589192,1209.2,1209.1,4.76402449]
[1672771459142,8.80589192,1209.2,1209.1,0.85591577]
[1672771459355,8.80589192,1209.2,1209.1,4.76402449]
[1672771459507,8.80589192,1209.2,1209.1,0.85591577]
[1672771461199,8.80789192,1209.2,1209.1,0.85591577]
[1672771461448,8.80589192,1209.2,1209.1,0.85591577]
[1672771463323,4.35292784,1209.2,1209.1,16.8587084]
[1672771463554,4.34283355,1209.2,1209.1,16.9247084]
[1672771464372,4.34283355,1209.2,1209.1,6.9999784]
[1672771465095,21.232216,1209.3,1209.1,6.9999784]
[1672771465307,4.34221454,1209.2,1209.1,4.83002449]
[1672771465566,4.34194183,1209.2,1209.1,4.76402449]
[1672771465918,31.155556,1209.3,1209.1,4.76402449]
[1672771466132,34.77248899,1209.3,1209.1,4.76402449]
[1672771466380,24.84914899,1209.3,1209.1,4.76402449]
[1672771467559,34.77231899,1209.3,1209.1,4.76402449]
[1672771467936,44.69579899,1209.3,1209.1,4.76402449]
[1672771468142,4.34138809,1209.2,1209.1,4.76034356]
[1672771468814,4.34141603,1209.2,1209.1,4.76034356]
[1672771470377,3.67202955,1209.2,1209.1,4.76034356]
[1672771470657,44.75093555,1209.3,1209.1,6.80634356]
[1672771470907,50.85268429,1209.3,1209.1,6.87234356]
[1672771471655,45.35268429,1209.3,1209.1,6.87234356]
[1672771471810,35.42916429,1209.3,1209.1,6.87234356]
[1672771472960,5.122246,1209.2,1209.1,6.87234356]
[1672771473171,3.68269482,1209.2,1209.1,2.96423484]
[1672771473490,3.67269482,1209.2,1209.1,6.80634356]
[1672771473705,18.71885082,1209.2,1209.1,2.96423484]
[1672771474066,18.71885082,1209.2,1209.1,2.89823484]
[1672771474067,8.80494082,1209.2,1209.1,2.89823484]
[1672771474450,14.30494082,1209.2,1209.1,2.89823484]
[1672771475119,8.80494082,1209.2,1209.1,2.89823484]
[1672771478014,0.01,1209.2,1209.1,6.80634356]
[1672771478227,3.67269786,1209.2,1209.1,6.87234356]
[1672771478465,4.34049354,1209.2,1209.1,6.87234356]
[1672771478680,8.01322091,1209.2,1209.1,6.87234356]
[1672771478867,8.02322091,1209.2,1209.1,6.87234356]
[1672771479513,3.68272737,1209.2,1209.1,2.96423484]
[1672771479896,3.67272737,1209.2,1209.1,6.80634356]
[1672771480070,39.24965426,1209.3,1209.1,6.87234356]
[1672771480282,4.34064708,1209.2,1209.1,6.87234356]
[1672771480492,8.01218509,1209.2,1209.1,2.96423484]
[1672771480637,8.02222444,1209.2,1209.1,2.89823484]
[1672771480852,3.68157736,1209.2,1209.1,2.89823484]
[1672771481131,8.79382336,1209.2,1209.1,2.89823484]
[1672771481329,8.80382336,1209.2,1209.1,2.89823484]
[1672771481493,8.0221212,1209.2,1209.1,2.89823484]
[1672771481709,8.0221212,1209.2,1209.1,6.80634356]
[1672771481919,8.0221212,1209.2,1209.1,6.87234356]
[1672771481920,4.35054384,1209.2,1209.1,6.87234356]
[1672771482257,4.34054384,1209.2,1209.1,36.64653356]
[1672771483440,4.34054384,1209.2,1209.1,26.72180356]
[1672771484487,4.34054384,1209.2,1209.1,36.64653356]
[1672771486527,4.34054384,1209.2,1209.1,30.8706647]
[1672771488291,4.34054384,1209.2,1209.1,20.9459347]
[1672771489406,4.34054384,1209.2,1209.1,11.0212047]
[1672771490568,4.34054384,1209.2,1209.1,11.01872778]
[1672771490774,8.0109452,1209.2,1209.1,7.11061906]
[1672771491028,8.0209452,1209.2,1209.1,7.11061906]
[1672771492833,27.8687652,1209.2,1209.1,7.11061906]
[1672771493600,23.52822136,1209.2,1209.1,7.11061906]
[1672771494246,33.45213136,1209.2,1209.1,2.96175792]
[1672771494545,3.68040136,1209.2,1209.1,2.89575792]
[1672771494820,13.59431136,1209.2,1209.1,2.89575792]
[1672771495069,18.72655736,1209.2,1209.1,2.89575792]
[1672771495461,13.60431136,1209.2,1209.1,2.89575792]
[1672771495642,18.72655736,1209.2,1209.1,2.89575792]
[1672771496192,23.52822136,1209.2,1209.1,2.89575792]
[1672771496503,13.60431136,1209.2,1209.1,2.89575792]
[1672771496660,17.94325986,1209.2,1209.1,2.89575792]
[1672771496871,8.01934986,1209.2,1209.1,2.89575792]
[1672771497082,3.68040136,1209.2,1209.1,2.89575792]
[1672771497334,8.0093973,1209.2,1209.1,2.89575792]
[1672771497536,8.0193973,1209.2,1209.1,2.89575792]
[1672771497730,3.68040136,1209.2,1209.1,2.89575792]
[1672771497941,3.67040136,1209.2,1209.1,2.89575792]
[1672771498169,3.67040136,1209.2,1209.1,6.80386664]
[1672771498382,3.67040136,1209.2,1209.1,6.86986664]
[1672771499028,8.79264736,1209.2,1209.1,2.96175792]
[1672771499343,8.80264736,1209.2,1209.1,2.89575792]
[1672771501176,9.42344736,1209.2,1209.1,2.89575792]
[1672771501394,14.51342929,1209.2,1209.1,2.89575792]
[1672771503978,14.51342929,1209.2,1209.1,0.84975792]
[1672771504291,24.43733929,1209.2,1209.1,0.84975792]
[1672771507403,34.36124929,1209.2,1209.1,0.84975792]
[1672771507974,33.74044929,1209.2,1209.1,0.84975792]
[1672771511230,43.66435929,1209.2,1209.1,0.84975792]
[1672771514809,38.54211329,1209.2,1209.1,0.84975792]
[1672771515120,43.66561123,1209.2,1209.1,0.84609591]
[1672771518343,33.74170123,1209.2,1209.1,0.84609591]
[1672771520572,44.69226518,1209.2,1209.1,0.84609591]
[1672771520906,54.61617518,1209.2,1209.1,0.84609591]
[1672771521812,44.69226518,1209.2,1209.1,0.84609591]
[1672771522211,38.54211329,1209.2,1209.1,0.84609591]
[1672771522589,43.66240803,1209.2,1209.1,0.84609591]
[1672771525394,13.89067803,1209.2,1209.1,0.84609591]
[1672771525569,14.3006961,1209.2,1209.1,0.84609591]
[1672771525759,24.2246061,1209.2,1209.1,0.84609591]
[1672771526514,34.1485161,1209.2,1209.1,0.84609591]
[1672771526892,24.2246061,1209.2,1209.1,0.84609591]
[1672771527349,34.1485161,1209.2,1209.1,0.84609591]
[1672771527513,29.3144719,1209.2,1209.1,0.84609591]
[1672771527716,39.2383819,1209.2,1209.1,0.84609591]
[1672771528093,49.1622919,1209.2,1209.1,0.84609591]
[1672771529521,66.93572019,1209.2,1209.1,0.84609591]
[1672771529711,62.8455683,1209.2,1209.1,0.84609591]
[1672771529920,70.8455683,1209.2,1209.1,0.84609591]
[1672771531291,70.91660864,1209.2,1209.1,0.84609591]
[1672771532564,77.05871586,1209.2,1209.1,0.84609591]
[1672771533933,75.00871586,1209.2,1209.1,0.84609591]
[1672771535106,68.86660864,1209.2,1209.1,0.84609591]
[1672771536035,68.86660864,1209.2,1209.1,0.84230993]
[1672771536645,75.00724625,1209.2,1209.1,0.84230993]
[1672771536851,70.00724625,1209.2,1209.1,0.84230993]
[1672771537272,63.86660864,1209.2,1209.1,0.84230993]
[1672771537526,63.84860864,1209.2,1209.1,0.84230993]
[1672771537923,69.07860864,1209.2,1209.1,0.46167015]
[1672771538800,69.07860864,1209.2,1209.1,0.74205475]
[1672771538969,71.13960864,1209.2,1209.1,0.74205475]
[1672771540754,69.09760864,1209.2,1209.1,0.74205475]
[1672771541788,69.09760864,1209.2,1209.1,4.75e-06]
[1672771545435,67.03660864,1209.2,1209.1,4.75e-06]
[1672771548004,69.09560864,1209.2,1209.1,4.75e-06]
[1672771548187,71.14060864,1209.2,1209.1,4.75e-06]
[1672771550764,67.45463901,1209.2,1209.1,4.75e-06]
[1672771552866,67.03660864,1209.2,1209.1,4.75e-06]
[1672771554164,67.03298721,1209.2,1209.1,4.75e-06]
[1672771557866,67.03298721,1209.2,1209.0,0.00607632]
[1672771558078,16.04208326,1209.1,1209.0,0.00607632]
[1672771558406,64.66861008,1209.1,1209.0,0.00607632]
[1672771558568,58.53174346,1209.1,1209.0,0.00607632]
[1672771558759,64.66943242,1209.1,1209.0,0.00607632]
[1672771558972,58.53174346,1209.1,1209.0,0.00607632]
[1672771560441,53.53174346,1209.1,1209.0,0.00607632]
[1672771560656,59.66940491,1209.1,1209.0,0.00607632]
[1672771561439,64.66940491,1209.1,1209.0,0.00607632]
[1672771562476,54.74467491,1209.1,1209.0,0.00607632]
[1672771562913,47.88611391,1209.1,1209.0,0.00607632]
[1672771563068,43.86410159,1209.1,1209.0,0.00607632]
[1672771563282,43.864292,1209.1,1209.0,0.00607632]
[1672771563529,38.74845246,1209.1,1209.0,0.00607632]
[1672771563733,43.86421648,1209.1,1209.0,0.00607632]
[1672771565178,43.86509183,1209.1,1209.0,0.00607632]
[1672771565394,53.78982183,1209.1,1209.0,0.00607632]
[1672771565795,48.67318246,1209.1,1209.0,0.00607632]
[1672771566010,54.81084391,1209.1,1209.0,0.00607632]
[1672771566330,60.2975283,1209.1,1209.0,0.00607632]
[1672771569896,60.30540785,1209.1,1209.0,0.00607632]
[1672771570104,60.3053846,1209.1,1209.0,0.00607632]
[1672771570351,60.30563686,1209.1,1209.0,0.00607632]
[1672771570789,54.15986685,1209.1,1209.0,0.00607632]
[1672771574809,54.8203349,1209.1,1209.0,0.00607632]
[1672771576048,49.8203349,1209.1,1209.0,0.00607632]
[1672771577781,43.67318246,1209.1,1209.0,0.00607632]
[1672771578183,48.67318246,1209.1,1209.0,0.00607632]
[1672771579197,48.67318246,1209.1,1209.0,0.00316938]
[1672771579413,48.54610071,1209.1,1209.0,0.00316938]
[1672771580453,49.16700071,1209.1,1209.0,0.00316938]
[1672771581459,5.5,1209.0,1208.9,0.00898414]
[1672771581670,9.47426246,1209.0,1208.9,0.00898414]
[1672771581880,49.17646246,1209.0,1208.9,0.00898414]
[1672771582090,55.64156353,1209.0,1208.9,0.00898414]
[1672771582352,55.63888653,1209.0,1208.9,0.00898414]
[1672771583209,59.78774767,1209.0,1208.9,0.00898414]
[1672771586781,59.78774767,1209.0,1208.8,0.00491504]
[1672771586782,62.46964767,1209.0,1208.8,0.00491504]
[1672771586930,62.46964767,1209.0,1208.7,0.01004208]
[1672771586931,14.39308326,1208.9,1208.7,0.01004208]
[1672771587304,43.60202212,1208.8,1208.7,0.01004208]
[1672771587468,49.75736315,1208.8,1208.7,0.01004208]
[1672771588721,64.06342429,1208.8,1208.7,0.01004208]
[1672771594814,54.13622429,1208.8,1208.7,0.01004208]
[1672771595058,43.61202212,1208.8,1208.7,0.01004208]
[1672771595672,48.72535329,1208.8,1208.7,0.01004208]
[1672771596315,53.11420723,1208.8,1208.7,0.01004208]
[1672771605542,9.01655329,1208.8,1208.7,0.01004208]
[1672771605792,44.29815329,1208.8,1208.7,0.01004208]
[1672771606185,39.18482212,1208.8,1208.7,0.01004208]
[1672771606395,44.29815329,1208.8,1208.7,0.01004208]
[1672771606748,54.22535329,1208.8,1208.7,0.01004208]
[1672771607323,60.46217499,1208.8,1208.7,0.01004208]
[1672771608158,60.46217499,1208.8,1208.7,0.00681625]
[1672771614698,60.46217499,1208.8,1208.7,1.10658151]
[1672771615159,55.34884382,1208.8,1208.7,1.10658151]
[1672771615543,61.49418485,1208.8,1208.7,1.10658151]
[1672771616188,60.46939022,1208.8,1208.7,1.10658151]
[1672771617339,55.34884382,1208.8,1208.7,1.10658151]
[1672771617554,61.49418485,1208.8,1208.7,1.10658151]
[1672771624362,55.34884382,1208.8,1208.7,1.10658151]
[1672771631302,55.34884382,1208.8,1208.7,1.10312402]
[1672771632597,59.49770496,1208.8,1208.7,1.10312402]
[1672771634726,59.72770496,1208.8,1208.7,1.10312402]
[1672771646192,62.72770496,1208.8,1208.7,1.10312402]
[1672771647565,67.72770496,1208.8,1208.7,1.10312402]
[1672771647925,67.72770496,1208.8,1208.7,0.60045788]
[1672771649879,68.34870496,1208.8,1208.7,0.60045788]
[1672771653704,70.38970496,1208.8,1208.7,7.88e-06]
[1672771660804,68.34870496,1208.8,1208.7,7.88e-06]
[1672771661550,63.34870496,1208.8,1208.7,7.88e-06]
[1672771662359,68.34870496,1208.8,1208.7,7.88e-06]
[1672771668453,63.34870496,1208.8,1208.7,7.88e-06]
[1672771669367,68.34870496,1208.8,1208.7,7.88e-06]
[1672771671310,68.34870496,1208.8,1208.6,8.57e-06]
[1672771671632,52.95637034,1208.7,1208.6,8.57e-06]
[1672771671843,55.99132083,1208.7,1208.6,8.57e-06]
[1672771673783,55.99132083,1208.7,1208.5,0.00736158]
[1672771673784,55.99132083,1208.7,1208.5,0.00037015]
[1672771674114,1.932,1208.4,1208.0,0.8092525]
[1672771674471,5.5,1208.2,1207.9,8.92319874]
[1672771674690,53.58548576,1208.1,1207.9,9.01619874]
[1672771674836,3.85342462,1208.0,1207.9,9.01619874]
[1672771675205,23.72096462,1208.0,1207.9,0.16759874]
[1672771675355,23.73296462,1208.0,1207.9,0.07459874]
[1672771675844,2.22347393,1208.0,1207.9,0.07459874]
[1672771676055,15.62035,1208.1,1207.9,5.97802336]
[1672771676204,17.77868712,1208.1,1208.0,5.89842462]
[1672771676409,17.76231944,1208.1,1208.0,5.99142462]
[1672771676724,5.014,1208.1,1208.0,8.04942462]
[1672771676864,5.014,1208.1,1208.0,8.05242462]
[1672771676865,5.012,1208.1,1208.0,8.05242462]
[1672771677077,5.012,1208.1,1208.0,9.49598367]
[1672771677326,0.012,1208.1,1208.0,9.49598367]
[1672771677670,0.012,1208.2,1208.0,11.55698367]
[1672771677822,5.0,1208.3,1208.1,7.97542462]
[1672771678022,5.012,1208.3,1208.2,7.95442462]
[1672771678222,5.012,1208.3,1208.2,8.04742462]
[1672771678438,0.012,1208.3,1208.2,8.04742462]
[1672771678712,9.9313,1208.3,1208.2,8.04742462]
[1672771678920,9.9433,1208.3,1208.2,8.04742462]
[1672771679074,9.9433,1208.3,1208.2,4.194]
[1672771679283,19.8746,1208.3,1208.2,7.95442462]
[1672771679487,9.9433,1208.3,1208.2,9.02265463]
[1672771680135,14.26793942,1208.3,1208.2,9.02265463]
[1672771680361,29.8059,1208.3,1208.2,4.194]
[1672771680587,29.8059,1208.3,1208.2,4.101]
[1672771680801,29.8059,1208.3,1208.2,2.04]
[1672771681481,0.012,1208.3,1208.2,5.89342462]
[1672771681695,4.32460788,1208.3,1208.2,6.75555463]
[1672771682480,14.25590788,1208.3,1208.2,6.75555463]
[1672771682632,14.26790788,1208.3,1208.2,6.75555463]
[1672771682849,34.13050788,1208.3,1208.2,6.75555463]
[1672771683873,34.13050788,1208.3,1208.2,14.12613]
[1672771683874,0.012,1208.3,1208.2,14.12613]
[1672771684216,3.0895456,1208.3,1208.2,38.88558656]
[1672771684380,3.0895456,1208.3,1208.2,28.95345656]
[1672771684534,3.0895456,1208.3,1208.2,33.51300559]
[1672771685014,3.08991965,1208.3,1208.2,13.64874559]
[1672771685634,3.08985627,1208.3,1208.2,13.64874559]
[1672771686734,16.87458089,1208.3,1208.2,9.24872075]
[1672771686994,16.87458089,1208.3,1208.2,4.68917172]
[1672771686995,47.29848369,1208.3,1208.2,4.68917172]
[1672771687148,47.29848369,1208.3,1208.2,4.59617172]
[1672771687351,37.36718369,1208.3,1208.2,4.59617172]
[1672771688191,37.36718369,1208.3,1208.2,4.101]
[1672771689974,37.36718369,1208.3,1208.2,8.49443663]
[1672771690185,3.10426962,1208.3,1208.2,28.44869663]
[1672771690399,7.62728369,1208.4,1208.2,18.51956663]
[1672771690613,7.57328369,1208.4,1208.3,5.91406643]
[1672771690992,7.57328369,1208.4,1208.3,6.00706643]
[1672771692223,7.57328369,1208.4,1208.3,8.85216211]
[1672771693051,7.57429392,1208.4,1208.3,8.85216211]
[1672771695033,17.50477392,1208.4,1208.3,8.85216211]
[1672771695257,17.50477392,1208.4,1208.3,6.00706643]
[1672771695467,18.1217402,1208.4,1208.3,6.00706643]
[1672771695681,17.50463132,1208.4,1208.3,6.00706643]
[1672771697373,7.57415132,1208.4,1208.3,6.00706643]
[1672771697990,7.57415132,1208.4,1208.3,15.93836643]
[1672771698238,7.57379268,1208.4,1208.3,6.00706643]
[1672771698977,7.57415132,1208.4,1208.3,6.00706643]
[1672771699140,7.57415132,1208.4,1208.3,15.93836643]
[1672771699359,7.57415132,1208.4,1208.3,6.00706643]
[1672771701035,7.57415132,1208.4,1208.3,6.00325723]
[1672771702439,9.995601,1208.4,1208.3,6.00325723]
[1672771702596,7.57407172,1208.4,1208.3,6.00325723]
[1672771703227,7.57407172,1208.4,1208.3,2.154]
[1672771703436,17.50455172,1208.4,1208.3,2.061]
[1672771704231,17.50455172,1208.4,1208.3,5.91298692]
[1672771704377,17.50455172,1208.4,1208.3,6.00598692]
[1672771706217,7.57407172,1208.4,1208.3,6.00598692]
[1672771707730,7.57407172,1208.4,1208.3,6.00418606]
[1672771708658,17.50455172,1208.4,1208.3,6.00418606]
[1672771708871,17.50455172,1208.4,1208.3,5.99018606]
[1672771709562,7.57407172,1208.4,1208.3,5.99018606]
[1672771710840,7.57407172,1208.4,1208.3,2.14]
[1672771711062,37.98361957,1208.4,1208.3,2.047]
[1672771713596,37.98561957,1208.4,1208.3,2.047]
[1672771713782,37.98361957,1208.4,1208.3,2.047]
[1672771713998,3.86542462,1208.4,1208.3,2.047]
[1672771714190,3.85342462,1208.4,1208.3,2.047]
[1672771715334,13.78390462,1208.4,1208.3,2.047]
[1672771715545,18.12265957,1208.4,1208.3,2.047]
[1672771716770,18.12265957,1208.4,1208.3,1.947]
[1672771717402,8.19217957,1208.4,1208.3,1.947]
[1672771718021,18.12265957,1208.4,1208.3,1.947]
[1672771719447,18.13438082,1208.4,1208.3,1.947]
[1672771721935,18.9068839,1208.4,1208.3,1.947]
[1672771723451,38.7678439,1208.4,1208.3,1.947]
[1672771723663,44.31815993,1208.4,1208.3,1.947]
[1672771730789,44.31815993,1208.4,1208.2,2.14688798]
[1672771730952,8.19343623,1208.3,1208.2,2.05388798]
[1672771731166,8.20543623,1208.3,1208.2,2.05388798]
[1672771731806,18.13673623,1208.3,1208.2,2.05388798]
[1672771732963,18.13873623,1208.3,1208.2,2.05388798]
[1672771733195,18.13673623,1208.3,1208.2,2.05388798]
[1672771734277,38.7703039,1208.3,1208.2,2.051]
[1672771734992,55.20929703,1208.3,1208.1,0.093]
[1672771735221,8.97692861,1208.2,1208.0,8.5681]
[1672771735438,37.9896543,1208.1,1208.0,8.5681]
[1672771735621,18.1357543,1208.1,1208.0,8.5681]
[1672771735832,23.73132462,1208.1,1208.0,8.5681]
[1672771736054,28.0686536,1208.1,1208.0,0.093]
[1672771736383,18.1357036,1208.1,1207.9,2.13059874]
[1672771736536,7.56860476,1208.0,1207.9,5.13059874]
[1672771736746,7.58060476,1208.0,1207.9,5.22359874]
[1672771737288,7.58060476,1208.0,1207.9,2.22359874]
[1672771737471,7.58060476,1208.0,1207.9,2.13059874]
[1672771738697,7.58060476,1208.0,1207.9,5.87078603]
[1672771738842,7.58060476,1208.0,1207.9,40.49743064]
[1672771739298,7.58060476,1208.0,1207.9,20.62825064]
[1672771739911,7.58060476,1208.0,1207.9,30.56284064]
[1672771740328,7.58060476,1208.0,1207.9,20.62825064]
[1672771740943,7.58060476,1208.0,1207.9,20.62463036]
[1672771742212,7.58060476,1208.0,1207.9,30.55922036]
[1672771742476,7.58060476,1208.0,1207.9,20.62463036]
[1672771743379,7.58060476,1208.0,1207.9,30.55922036]
[1672771743589,3.72718014,1208.0,1207.9,30.55922036]
[1672771743799,3.09372949,1208.0,1207.9,34.7080815]
[1672771744027,5.56838603,1208.0,1207.9,70.6352615]
[1672771744219,2.48665654,1208.0,1207.9,70.8652615]
[1672771744434,2.47465654,1208.0,1207.9,70.8652615]
[1672771746326,2.54065654,1208.1,1207.9,79.9272615]
[1672771746517,2.54065654,1208.1,1208.0,17.41028576]
[1672771746518,2.47465654,1208.1,1208.0,17.41028576]
[1672771746730,5.56838603,1208.1,1208.0,55.60851936]
[1672771746939,5.56838603,1208.1,1208.0,56.10369108]
[1672771746940,5.58038603,1208.1,1208.0,56.10369108]
[1672771747187,5.58038603,1208.1,1208.0,67.10369108]
[1672771748040,5.58038603,1208.1,1208.0,77.03746108]
[1672771748832,2.48665654,1208.1,1208.0,77.03746108]
[1672771749040,2.47465654,1208.1,1208.0,77.03746108]
[1672771749519,5.56838603,1208.1,1208.0,77.03746108]
[1672771749672,2.48665654,1208.1,1208.0,77.03746108]
[1672771749884,2.47465654,1208.1,1208.0,77.03746108]
[1672771750451,5.56838603,1208.1,1208.0,77.03746108]
[1672771750636,5.58038603,1208.1,1208.0,77.03746108]
[1672771750860,2.48665654,1208.1,1208.0,77.03746108]
[1672771751067,2.47465654,1208.1,1208.0,77.03746108]
[1672771755234,2.47465654,1208.1,1208.0,77.46119743]
[1672771757316,5.56838603,1208.1,1208.0,77.46119743]
[1672771757525,5.58038603,1208.1,1208.0,77.46119743]
[1672771759979,2.48665654,1208.1,1208.0,77.46119743]
[1672771760187,2.47465654,1208.1,1208.0,77.46119743]
[1672771760520,2.47465654,1208.1,1208.0,75.40719743]
[1672771762629,2.47465654,1208.1,1208.0,75.40340667]
[1672771767996,2.28896954,1208.1,1208.0,75.40340667]
[1672771768307,5.44869903,1208.2,1208.0,75.40340667]
[1672771768517,5.39469903,1208.2,1208.1,15.55128576]
[1672771768738,5.39469903,1208.2,1208.1,52.07280771]
[1672771768915,5.39469903,1208.2,1208.1,47.06797943]
[1672771771044,2.30096954,1208.2,1208.1,47.06797943]
[1672771771211,2.28896954,1208.2,1208.1,47.06797943]
[1672771771988,5.38269903,1208.2,1208.1,47.06797943]
[1672771772220,2.30096954,1208.2,1208.1,47.06797943]
[1672771772545,2.28896954,1208.2,1208.1,47.06797943]
[1672771774044,5.38269903,1208.2,1208.1,47.06797943]
[1672771774259,5.39469903,1208.2,1208.1,47.06797943]
[1672771774926,6.95915411,1208.2,1208.1,47.06797943]
[1672771776795,3.10572949,1208.2,1208.1,47.06797943]
[1672771777009,5.56858927,1208.2,1208.1,47.06797943]
[1672771777190,5.58058927,1208.2,1208.1,47.06797943]
[1672771778150,3.10572949,1208.2,1208.1,47.06797943]
[1672771778351,3.09372949,1208.2,1208.1,47.06797943]
[1672771779878,5.57011785,1208.2,1208.1,47.06797943]
[1672771780051,5.58211785,1208.2,1208.1,47.06797943]
[1672771782931,3.10572949,1208.2,1208.1,47.06797943]
[1672771783087,3.09372949,1208.2,1208.1,47.06797943]
[1672771787443,7.56860476,1208.2,1208.1,47.06797943]
[1672771787659,7.58060476,1208.2,1208.1,47.06797943]
[1672771788567,8.2027536,1208.2,1208.1,47.06797943]
[1672771788765,4.34932898,1208.2,1208.1,47.06797943]
[1672771788970,4.33732898,1208.2,1208.1,47.06797943]
[1672771789187,8.2567536,1208.3,1208.1,47.06797943]
[1672771789425,4.34932898,1208.3,1208.2,9.21086114]
[1672771789644,8.1907536,1208.3,1208.2,29.16812114]
[1672771789974,8.2027536,1208.3,1208.2,29.16812114]
[1672771790334,8.2027536,1208.3,1208.2,27.10612114]
[1672771790544,8.2027536,1208.3,1208.2,30.5793249]
[1672771791003,8.2027536,1208.3,1208.2,30.57622492]
[1672771791424,8.2027536,1208.3,1208.2,40.50835492]
[1672771793919,8.2027536,1208.3,1208.2,30.57622492]
[1672771794766,8.2027536,1208.3,1208.2,27.10302116]
[1672771797401,8.2027536,1208.3,1208.2,17.17089116]
[1672771797565,8.2027536,1208.3,1208.2,7.23876116]
[1672771797937,3.86542462,1208.3,1208.2,7.23876116]
[1672771798312,3.85342462,1208.3,1208.2,7.23876116]
[1672771798517,8.1912193,1208.3,1208.2,7.23876116]
[1672771798743,8.2032193,1208.3,1208.2,7.23876116]
[1672771801192,38.78288441,1208.3,1208.2,3.093]
[1672771801438,43.90491832,1208.3,1208.1,3.58817172]
[1672771801652,18.12296508,1208.2,1208.1,7.64403286]
[1672771801872,18.13496508,1208.2,1208.1,7.73703286]
[1672771802059,8.20283508,1208.2,1208.1,3.093]
[1672771802261,12.52040157,1208.2,1208.0,2.33039863]
[1672771802473,7.57118447,1208.1,1208.0,12.93377]
[1672771802722,7.58318447,1208.1,1208.0,0.093]
[1672771802948,7.58318447,1208.1,1207.9,37.53642891]
[1672771803149,3.85342462,1208.0,1207.9,45.16002701]
[1672771803305,3.85342462,1208.0,1207.9,45.65519873]
[1672771803717,6.95027266,1208.0,1207.9,45.65519873]
[1672771803929,6.96227266,1208.0,1207.9,45.65519873]
[1672771804565,3.10884804,1208.0,1207.9,45.65519873]
[1672771804779,6.95027266,1208.0,1207.9,45.65519873]
[1672771805039,6.96227266,1208.0,1207.9,45.65519873]
[1672771805836,3.10884804,1208.0,1207.9,45.65519873]
[1672771806050,3.09684804,1208.0,1207.9,45.65519873]
[1672771807445,5.57335906,1208.0,1207.9,45.65519873]
[1672771807646,5.58535906,1208.0,1207.9,45.65519873]
[1672771807984,5.58538746,1208.0,1207.9,45.65519873]
[1672771808129,3.10884804,1208.0,1207.9,45.65519873]
[1672771808339,6.95027266,1208.0,1207.9,25.78694873]
[1672771808597,7.58318447,1208.0,1207.9,27.67638132]
[1672771808810,3.72975985,1208.0,1207.9,37.61097132]
[1672771809021,3.71775985,1208.0,1207.9,41.46439594]
[1672771809343,3.09535774,1208.0,1207.9,41.46439594]
[1672771809538,6.94878236,1208.0,1207.9,48.78507295]
[1672771809753,6.96078236,1208.0,1207.9,48.78507295]
[1672771811551,5.58338624,1208.0,1207.9,48.78507295]
[1672771811717,5.58338624,1208.0,1207.9,58.71966295]
[1672771812133,5.58338624,1208.0,1207.9,61.01166295]
[1672771814531,5.58338624,1208.0,1207.9,61.00842356]
[1672771815900,4.34534077,1208.0,1207.9,61.00842356]
[1672771816073,4.33333192,1208.0,1207.9,61.00842356]